bitfinex/quotes_BTCUSD_20240718
["timestamp","ask_amount","ask_price","bid_price","bid_amount"]
[1721316208811,0.00084,63622.0,63621.0,1.25464474]
[1721316210513,0.00084,63622.0,63621.0,1.26864474]
[1721316211222,0.00084,63622.0,63621.0,1.26893523]
[1721316212100,0.00084,63622.0,63621.0,1.28293523]
[1721316212526,0.00084,63622.0,63621.0,0.96857423]
[1721316212749,0.00084,63622.0,63621.0,0.18267223]
[1721316213817,0.2018037,63622.0,63621.0,0.02829049]
[1721316214030,0.81749729,63622.0,63621.0,0.028]
[1721316214246,1.71517915,63622.0,63621.0,0.028]
[1721316214459,2.02953515,63622.0,63621.0,0.028]
[1721316214677,2.36849189,63622.0,63621.0,0.028]
[1721316215149,2.19256701,63622.0,63621.0,0.028]
[1721316215382,2.05413589,63622.0,63621.0,0.014]
[1721316215798,1.1441537,63615.0,63614.0,0.000924]
[1721316216010,1.1441537,63615.0,63614.0,0.00121449]
[1721316216011,1.32793206,63615.0,63614.0,0.00121449]
[1721316216239,1.32809885,63615.0,63614.0,0.00121449]
[1721316216453,1.21327853,63615.0,63614.0,0.00121449]
[1721316216689,0.5153717,63615.0,63614.0,0.00121449]
[1721316216923,0.99117292,63615.0,63614.0,0.00121449]
[1721316217132,0.92204809,63615.0,63614.0,0.00121449]
[1721316217344,1.23643909,63615.0,63614.0,0.00121449]
[1721316218027,0.92204809,63615.0,63614.0,0.00121449]
[1721316218280,0.87581784,63615.0,63614.0,0.00121449]
[1721316218527,0.2009807,63615.0,63614.0,0.00121449]
[1721316218764,0.8297627,63615.0,63614.0,0.00121449]
[1721316218989,0.8307627,63615.0,63614.0,0.00121449]
[1721316219446,0.8297627,63615.0,63614.0,0.00121449]
[1721316219684,0.8307627,63615.0,63614.0,0.00121449]
[1721316219917,0.8297627,63615.0,63614.0,0.00121449]
[1721316220146,0.8297627,63615.0,63614.0,0.00221449]
[1721316220147,1.27929152,63615.0,63614.0,0.00221449]
[1721316220367,1.43367326,63615.0,63614.0,0.00221449]
[1721316220587,1.1441537,63615.0,63614.0,0.00221449]
[1721316220838,0.87579962,63615.0,63614.0,0.00221449]
[1721316221077,0.8297627,63615.0,63614.0,0.001924]
[1721316221302,0.8297627,63615.0,63614.0,0.000924]
[1721316221751,0.2009807,63615.0,63614.0,0.000924]
[1721316221985,0.8297627,63615.0,63614.0,0.000924]
[1721316222215,0.2009807,63615.0,63614.0,0.000924]
[1721316222489,0.001,63615.0,63614.0,0.000924]
[1721316223451,0.2009727,63619.0,63614.0,0.000924]
[1721316223669,0.314365,63621.0,63614.0,0.00121449]
[1721316223670,0.0437857,63615.0,63614.0,0.00121449]
[1721316224114,0.314374,63619.0,63614.0,0.01421449]
[1721316224115,0.2009737,63618.0,63614.0,0.01421449]
[1721316224353,0.0437857,63615.0,63614.0,0.01421449]
[1721316224571,0.0437857,63618.0,63614.0,0.01421449]
[1721316225033,0.0446257,63622.0,63614.0,0.16859623]
[1721316225288,0.0437857,63617.0,63614.0,0.16859623]
[1721316225505,0.001,63615.0,63614.0,0.16859623]
[1721316225718,0.001,63615.0,63614.0,0.15559623]
[1721316225932,0.001,63615.0,63614.0,0.16359623]
[1721316226459,0.5163717,63615.0,63614.0,0.00121449]
[1721316226690,0.2019807,63615.0,63614.0,0.00121449]
[1721316226916,0.2019807,63615.0,63614.0,0.01421449]
[1721316227375,0.2019807,63615.0,63614.0,0.00121449]
[1721316227882,0.8307627,63615.0,63614.0,0.00121449]
[1721316228329,1.1451537,63615.0,63614.0,0.00121449]
[1721316228792,1.1451537,63615.0,63614.0,0.00721449]
[1721316229265,1.27789938,63615.0,63614.0,0.00121449]
[1721316229491,2.1790373,63615.0,63614.0,0.00921449]
[1721316229721,2.1790373,63615.0,63614.0,0.01521449]
[1721316229722,2.08693467,63615.0,63614.0,0.01521449]
[1721316230516,2.10993467,63615.0,63614.0,0.01521449]
[1721316230748,2.13453916,63615.0,63614.0,0.012924]
[1721316230976,2.13462185,63615.0,63614.0,0.012924]
[1721316231206,2.61441285,63615.0,63614.0,0.012924]
[1721316231668,2.14167168,63615.0,63614.0,0.007924]
[1721316231893,2.14267168,63615.0,63614.0,0.007924]
[1721316232563,2.14267168,63615.0,63614.0,0.001924]
[1721316233089,2.14467168,63615.0,63614.0,0.001924]
[1721316233334,2.26295741,63615.0,63614.0,0.001924]
[1721316233564,2.14467168,63615.0,63614.0,0.001924]
[1721316233785,2.14567168,63615.0,63614.0,0.002924]
[1721316234026,1.98030043,63615.0,63614.0,0.002924]
[1721316234497,2.09547575,63615.0,63614.0,0.001924]
[1721316234752,1.64290943,63615.0,63614.0,0.001924]
[1721316235038,1.58165893,63615.0,63614.0,0.002924]
[1721316235269,1.09353669,63615.0,63614.0,0.002924]
[1721316235497,1.47703231,63615.0,63614.0,0.002924]
[1721316235946,1.3148537,63615.0,63614.0,0.002924]
[1721316236638,1.3178537,63615.0,63614.0,0.003924]
[1721316237369,1.47701801,63615.0,63614.0,0.001924]
[1721316237620,2.05401613,63615.0,63614.0,0.001924]
[1721316237861,1.8297698,63615.0,63614.0,0.000924]
[1721316238113,2.05226384,63615.0,63614.0,0.000924]
[1721316238352,2.14441562,63615.0,63614.0,0.001924]
[1721316238580,2.16744468,63615.0,63614.0,0.001924]
[1721316238803,2.05226384,63615.0,63614.0,0.001924]
[1721316239028,2.14540924,63615.0,63614.0,0.001924]
[1721316239278,2.05326384,63615.0,63614.0,0.001924]
[1721316239525,1.56592821,63615.0,63614.0,0.001924]
[1721316239753,1.49682327,63615.0,63614.0,0.001924]
[1721316239969,1.2491537,63615.0,63614.0,0.001924]
[1721316240235,1.38836622,63615.0,63614.0,0.001924]
[1721316240483,0.005,63615.0,63614.0,0.001924]
[1721316240736,0.162195,63615.0,63614.0,0.001924]
[1721316240978,0.005,63615.0,63614.0,0.001924]
[1721316241639,0.5203717,63615.0,63614.0,0.001924]
[1721316241902,0.162195,63615.0,63614.0,0.001924]
[1721316242132,0.002,63615.0,63614.0,0.001924]
[1721316242364,0.004,63615.0,63614.0,0.001924]
[1721316242587,0.83769267,63615.0,63614.0,0.001924]
[1721316242805,0.83769267,63615.0,63614.0,0.000924]
[1721316242806,1.01777228,63615.0,63614.0,0.000924]
[1721316243039,1.33216328,63615.0,63614.0,0.000924]
[1721316243319,1.33216328,63615.0,63614.0,0.002924]
[1721316243545,1.23790608,63615.0,63614.0,0.002924]
[1721316243797,1.23790608,63615.0,63614.0,0.011924]
[1721316244017,1.38396794,63615.0,63614.0,0.011924]
[1721316244235,1.33790608,63615.0,63614.0,0.011924]
[1721316244453,1.33790608,63615.0,63614.0,0.000924]
[1721316244454,1.02351508,63615.0,63614.0,0.000924]
[1721316244676,1.02351508,63615.0,63614.0,0.005924]
[1721316245140,1.02342097,63615.0,63614.0,0.005924]
[1721316245357,1.11708887,63615.0,63614.0,0.005924]
[1721316245623,1.11706994,63615.0,63614.0,0.005924]
[1721316245879,0.29463897,63615.0,63614.0,0.005924]
[1721316246108,0.29463897,63615.0,63614.0,0.074424]
[1721316246109,0.60902997,63615.0,63614.0,0.074424]
[1721316246324,0.8297627,63615.0,63614.0,0.074424]
[1721316246547,0.5153717,63615.0,63614.0,0.010924]
[1721316246780,0.2009807,63615.0,63614.0,0.010924]
[1721316246995,0.8297627,63615.0,63614.0,0.010924]
[1721316247446,0.5153717,63615.0,63614.0,0.010924]
[1721316247668,1.1441537,63615.0,63614.0,0.010924]
[1721316248095,0.8297627,63615.0,63614.0,0.010924]
[1721316248310,0.2009807,63615.0,63614.0,0.010924]
[1721316249021,0.5153717,63615.0,63614.0,0.093324]
[1721316249238,0.0437857,63615.0,63614.0,0.093324]
[1721316249464,0.2009787,63616.0,63614.0,0.093324]
[1721316249722,0.2009787,63616.0,63614.0,0.15511449]
[1721316249954,0.0437857,63616.0,63614.0,0.15511449]
[1721316250176,0.0437857,63619.0,63615.0,0.15438174]
[1721316250397,0.06907111,63620.0,63615.0,0.15438174]
[1721316250398,0.06907111,63620.0,63616.0,0.31752642]
[1721316250614,0.06907111,63620.0,63619.0,0.301985]
[1721316250833,0.06907111,63620.0,63619.0,0.77073774]
[1721316251058,0.06907111,63620.0,63619.0,1.08510874]
[1721316251715,0.06907111,63620.0,63619.0,1.39947974]
[1721316252447,0.13812101,63630.0,63629.0,0.471483]
[1721316252667,0.13812101,63630.0,63629.0,0.45183323]
[1721316252875,0.13812101,63630.0,63629.0,0.76615523]
[1721316253722,0.13812101,63630.0,63629.0,1.39479923]
[1721316254907,0.05482101,63630.0,63629.0,1.39479923]
[1721316255123,0.00083,63651.0,63631.0,0.0062143]
[1721316255361,0.00083,63651.0,63629.0,0.15467223]
[1721316255362,0.00083,63651.0,63650.0,0.619327]
[1721316255575,0.00083,63651.0,63650.0,0.77399923]
[1721316256304,0.00083,63651.0,63650.0,0.30267223]
[1721316256512,0.2017217,63651.0,63650.0,0.00029049]
[1721316256728,0.8301477,63651.0,63650.0,0.00029049]
[1721316256968,1.1443607,63651.0,63650.0,0.00029049]
[1721316257415,1.1443607,63651.0,63650.0,0.01429049]
[1721316258067,1.2443607,63651.0,63650.0,0.01429049]
[1721316258291,2.64922514,63651.0,63650.0,0.01429049]
[1721316258512,1.4981537,63644.0,63643.0,0.00029049]
[1721316258726,1.4981537,63644.0,63629.0,0.014]
[1721316258727,0.8295777,63630.0,63629.0,0.014]
[1721316258954,1.1438947,63630.0,63629.0,0.01429049]
[1721316259389,1.1438947,63630.0,63629.0,0.00029049]
[1721316259885,1.87393067,63630.0,63629.0,0.00029049]
[1721316260328,1.88249344,63630.0,63629.0,0.00029049]
[1721316260554,1.97274081,63630.0,63629.0,0.00029049]
[1721316260997,2.54844535,63630.0,63629.0,0.00029049]
[1721316261319,2.95819798,63630.0,63629.0,0.00029049]
[1721316261566,1.5981447,63615.0,63613.0,0.009196]
[1721316261801,1.3837537,63615.0,63614.0,0.00121449]
[1721316262026,1.3202537,63615.0,63614.0,0.00121449]
[1721316262989,1.2441537,63615.0,63614.0,0.00121449]
[1721316263242,0.8297627,63615.0,63614.0,0.00121449]
[1721316263775,0.8417627,63615.0,63614.0,0.00221449]
[1721316264004,0.8297627,63615.0,63614.0,0.00221449]
[1721316264230,0.8297627,63615.0,63614.0,0.00121449]
[1721316264450,0.8297627,63615.0,63614.0,0.00221449]
[1721316264911,1.1441537,63615.0,63614.0,0.00121449]
[1721316265154,1.25856907,63615.0,63614.0,0.00121449]
[1721316265379,1.1441537,63615.0,63614.0,0.00121449]
[1721316265835,1.1521537,63615.0,63614.0,0.00221449]
[1721316266308,1.1521537,63615.0,63614.0,0.00121449]
[1721316266309,0.2009807,63615.0,63614.0,0.00121449]
[1721316266545,0.0437857,63618.0,63615.0,0.0824]
[1721316266783,0.0437857,63616.0,63615.0,0.0824]
[1721316267230,0.157172,63625.0,63615.0,0.23678174]
[1721316267472,0.157179,63622.0,63616.0,0.15717574]
[1721316267718,0.157175,63623.0,63616.0,0.15438174]
[1721316267965,0.157162,63629.0,63619.0,0.157185]
[1721316268232,0.314298,63634.0,63620.0,0.15717574]
[1721316268233,0.0437857,63624.0,63620.0,0.15717574]
[1721316268482,0.314329,63628.0,63620.0,0.15717574]
[1721316268483,0.2009557,63626.0,63620.0,0.15717574]
[1721316268731,0.2009537,63626.0,63620.0,0.15717574]
[1721316268928,0.157172,63625.0,63620.0,0.15717574]
[1721316269642,0.0437857,63622.0,63620.0,0.15717574]
[1721316269869,0.0437857,63622.0,63620.0,0.15438174]
[1721316270093,0.0437857,63624.0,63621.0,0.002794]
[1721316270332,0.157171,63625.0,63622.0,0.15438174]
[1721316270554,0.158171,63625.0,63622.0,0.15438174]
[1721316270774,0.0437857,63624.0,63622.0,0.15438174]
[1721316271010,0.158171,63625.0,63622.0,0.15438174]
[1721316271242,0.2009607,63623.0,63622.0,0.15438174]
[1721316271459,0.2009637,63622.0,63621.0,0.00029049]
[1721316271675,0.001,63625.0,63621.0,0.15467223]
[1721316271892,0.001,63625.0,63622.0,0.16617574]
[1721316272105,0.157168,63627.0,63622.0,0.16617574]
[1721316272348,0.157168,63627.0,63622.0,0.16338174]
[1721316272568,0.001,63624.0,63623.0,0.002794]
[1721316272818,0.001,63624.0,63623.0,0.15438174]
[1721316273042,0.157154,63632.0,63623.0,0.31155674]
[1721316273268,0.0437857,63634.0,63626.0,0.157168]
[1721316273484,0.0437857,63634.0,63628.0,0.1418]
[1721316273729,0.0437857,63640.0,63629.0,0.15717574]
[1721316273967,0.0437857,63640.0,63631.0,0.157155]
[1721316274183,0.0437857,63640.0,63632.0,0.15438174]
[1721316274402,0.157131,63641.0,63632.0,0.31153274]
[1721316274403,0.2009167,63641.0,63632.0,0.31153274]
[1721316274622,0.36023132,63643.0,63632.0,0.31153274]
[1721316274623,0.04597532,63643.0,63635.0,0.157146]
[1721316274886,0.04597532,63643.0,63636.0,0.15438174]
[1721316275158,0.04597532,63643.0,63637.0,0.0657]
[1721316275386,0.04597532,63643.0,63642.0,0.31150974]
[1721316275598,0.07717479,63661.0,63650.0,0.157109]
[1721316275824,0.0437857,63658.0,63650.0,0.15467223]
[1721316276064,0.0437857,63658.0,63643.0,0.0761]
[1721316276065,0.2017217,63651.0,63643.0,0.05139049]
[1721316276326,0.0437857,63638.0,63637.0,0.002794]
[1721316276558,0.5152007,63638.0,63637.0,0.002794]
[1721316276773,0.0437857,63633.0,63630.0,0.0647]
[1721316277020,0.0437857,63632.0,63631.0,0.15717574]
[1721316277254,0.157148,63635.0,63631.0,0.15438174]
[1721316277255,0.0437857,63634.0,63631.0,0.15438174]
[1721316277476,0.2009297,63636.0,63631.0,0.15438174]
[1721316277716,0.0437857,63636.0,63631.0,0.15438174]
[1721316277941,0.157144,63636.0,63631.0,0.15438174]
[1721316278159,0.23431779,63637.0,63631.0,0.15438174]
[1721316278377,0.0437857,63634.0,63632.0,0.002794]
[1721316278599,0.0437857,63634.0,63633.0,0.15438174]
[1721316278811,0.2009297,63636.0,63633.0,0.15438174]
[1721316279096,0.23431579,63637.0,63633.0,0.15438174]
[1721316279536,0.23531579,63637.0,63633.0,0.15438174]
[1721316279755,0.0437857,63636.0,63633.0,0.15438174]
[1721316279997,0.157144,63636.0,63633.0,0.15438174]
[1721316280228,0.2009297,63636.0,63633.0,0.15438174]
[1721316280458,0.0437857,63634.0,63633.0,0.16138174]
[1721316280668,0.0437857,63635.0,63633.0,0.16138174]
[1721316280883,0.12096049,63637.0,63633.0,0.16138174]
[1721316281102,0.0437857,63638.0,63634.0,0.002794]
[1721316281331,0.0437857,63641.0,63635.0,0.15438174]
[1721316281614,0.0437857,63640.0,63636.0,0.002794]
[1721316281860,0.0446157,63651.0,63646.0,0.157117]
[1721316282078,0.0446157,63651.0,63638.0,0.0768]
[1721316282079,0.00083,63651.0,63647.0,0.15438174]
[1721316282299,0.00083,63651.0,63648.0,0.00314186]
[1721316282519,0.00083,63651.0,63650.0,0.220909]
[1721316282769,0.00083,63651.0,63650.0,0.37529074]
[1721316283449,0.00083,63651.0,63650.0,0.21818174]
[1721316283956,0.00683,63651.0,63650.0,0.21818174]
[1721316284225,0.00683,63651.0,63650.0,0.37529074]
[1721316284440,0.00683,63651.0,63650.0,0.21818174]
[1721316284654,0.00083,63651.0,63650.0,0.21818174]
[1721316285068,0.00083,63651.0,63650.0,0.37529074]
[1721316285752,0.00083,63651.0,63650.0,0.68950874]
[1721316285968,0.00083,63651.0,63650.0,0.37529074]
[1721316286184,0.00083,63651.0,63650.0,0.23218174]
[1721316286638,0.00583,63651.0,63650.0,0.23218174]
[1721316286870,0.00583,63651.0,63650.0,0.24518174]
[1721316286871,0.0496157,63651.0,63650.0,0.24518174]
[1721316287113,0.5209347,63651.0,63650.0,0.027]
[1721316287331,1.1493607,63651.0,63650.0,0.027]
[1721316288955,1.1493607,63651.0,63650.0,0.013]
[1721316289181,1.1493607,63651.0,63639.0,0.002794]
[1721316289182,1.1437197,63640.0,63639.0,0.002794]
[1721316289449,0.157156,63631.0,63623.0,0.062113]
[1721316289699,0.3580907,63633.0,63624.0,0.15717574]
[1721316289700,0.2009397,63632.0,63624.0,0.15717574]
[1721316289918,0.2009397,63632.0,63624.0,0.15438174]
[1721316290161,0.0437857,63630.0,63624.0,0.15438174]
[1721316290422,0.157154,63632.0,63624.0,0.15438174]
[1721316290653,0.157154,63632.0,63624.0,0.31155474]
[1721316290877,0.0437857,63631.0,63625.0,0.002794]
[1721316291101,0.157154,63632.0,63626.0,0.15438174]
[1721316291321,0.2009347,63634.0,63626.0,0.15438174]
[1721316291549,0.2009347,63634.0,63627.0,0.002794]
[1721316291810,0.0437857,63640.0,63628.0,0.15752458]
[1721316292057,0.0437857,63638.0,63629.0,0.002794]
[1721316292310,0.0437857,63640.0,63633.0,0.15715]
[1721316294127,0.0437857,63645.0,63641.0,0.157131]
[1721316294342,0.0437857,63645.0,63642.0,0.15438174]
[1721316294605,0.0437857,63645.0,63643.0,0.002794]
[1721316294834,0.0437857,63645.0,63644.0,0.15438174]
[1721316295057,0.157937,63651.0,63644.0,0.15438174]
[1721316295284,0.157937,63651.0,63648.0,0.157111]
[1721316295285,0.00083,63651.0,63648.0,0.157111]
[1721316295550,0.00083,63651.0,63649.0,0.15438174]
[1721316295763,0.12096049,63650.0,63649.0,0.15438174]
[1721316295978,0.07717479,63650.0,63649.0,0.15438174]
[1721316296225,0.00083,63651.0,63650.0,0.157109]
[1721316296467,0.00083,63651.0,63650.0,0.15438174]
[1721316297169,0.00683,63651.0,63650.0,0.15438174]
[1721316297404,0.0506157,63651.0,63650.0,0.15438174]
[1721316297620,0.0437857,63648.0,63637.0,0.0761]
[1721316297851,0.0437857,63648.0,63641.0,0.15717574]
[1721316298092,0.12096049,63647.0,63641.0,0.15717574]
[1721316298548,0.0437857,63646.0,63641.0,0.15717574]
[1721316298769,0.07717479,63647.0,63641.0,0.15717574]
[1721316298990,0.12096049,63647.0,63641.0,0.15717574]
[1721316299222,0.2008967,63649.0,63641.0,0.15717574]
[1721316299451,0.0437857,63647.0,63641.0,0.15717574]
[1721316299679,0.0437857,63642.0,63641.0,0.15717574]
[1721316299902,0.0437857,63642.0,63641.0,0.15438174]
[1721316300593,0.0437857,63642.0,63641.0,0.16238174]
[1721316301268,0.0437857,63642.0,63641.0,0.15938174]
[1721316301269,0.0437857,63642.0,63641.0,0.17038174]
[1721316301515,0.314241,63646.0,63641.0,0.17038174]
[1721316301516,0.0437857,63646.0,63641.0,0.17038174]
[1721316301742,0.157111,63649.0,63642.0,0.002794]
[1721316301956,0.0437857,63647.0,63643.0,0.15438174]
[1721316302181,0.0437857,63650.0,63643.0,0.15438174]
[1721316302428,0.00083,63651.0,63650.0,0.157109]
[1721316302654,0.00083,63651.0,63650.0,0.62570874]
[1721316302880,0.00083,63651.0,63650.0,0.31149074]
[1721316303116,0.00083,63651.0,63650.0,0.62570874]
[1721316303393,0.00083,63651.0,63650.0,0.93992674]
[1721316304106,0.00083,63651.0,63650.0,1.25414474]
[1721316304388,0.0437857,63671.0,63651.0,0.0646]
[1721316304604,0.07717479,63667.0,63664.0,0.157074]
[1721316304859,0.0437857,63671.0,63665.0,0.31145274]
[1721316305097,0.0437857,63671.0,63665.0,0.15438174]
[1721316305328,0.0437857,63671.0,63665.0,0.31145174]
[1721316305571,0.0437857,63673.0,63665.0,0.15438174]
[1721316305821,0.157051,63674.0,63665.0,0.31145174]
[1721316306072,0.12096049,63668.0,63665.0,0.15438174]
[1721316306329,0.0437857,63666.0,63665.0,0.15438174]
[1721316306818,0.0437857,63666.0,63655.0,0.314189]
[1721316306819,0.0437857,63657.0,63653.0,0.157101]
[1721316307087,0.0437857,63661.0,63657.0,0.157091]
[1721316307311,0.0437857,63665.0,63658.0,0.31146874]
[1721316308021,0.07717479,63668.0,63658.0,0.15438174]
[1721316308022,0.12096049,63668.0,63658.0,0.15438174]
[1721316308277,0.07717479,63667.0,63662.0,0.157079]
[1721316308519,0.12096049,63667.0,63663.0,0.15438174]
[1721316308799,0.0437857,63671.0,63665.0,0.157071]
[1721316309018,0.0437857,63670.0,63666.0,0.15438174]
[1721316309234,0.07717479,63675.0,63666.0,0.15438174]
[1721316309235,0.0437857,63675.0,63668.0,0.157063]
[1721316309450,0.0437857,63675.0,63669.0,0.21568174]
[1721316309702,0.0437857,63675.0,63669.0,0.21882244]
[1721316309918,0.0437857,63677.0,63669.0,0.21882244]
[1721316310171,0.12096049,63675.0,63669.0,0.21568174]
[1721316310384,0.0437857,63675.0,63671.0,0.157057]
[1721316310600,0.0437857,63675.0,63669.0,0.53294544]
[1721316310601,0.0437857,63675.0,63672.0,0.15438174]
[1721316311042,0.0437857,63673.0,63672.0,0.15438174]
[1721316311255,0.07717479,63674.0,63672.0,0.15438174]
[1721316311907,0.0437857,63673.0,63672.0,0.15438174]
[1721316312133,0.2008377,63673.0,63672.0,0.15438174]
[1721316312635,0.5149417,63673.0,63672.0,0.15438174]
[1721316312868,0.0437857,63673.0,63672.0,0.15438174]
[1721316313084,0.07717479,63674.0,63672.0,0.15438174]
[1721316313524,0.0437857,63673.0,63672.0,0.16038174]
[1721316313743,0.0437857,63673.0,63672.0,0.16438174]
[1721316314249,0.12096049,63675.0,63672.0,0.15438174]
[1721316314474,0.27800849,63675.0,63672.0,0.15438174]
[1721316314709,0.0437857,63678.0,63672.0,0.16338174]
[1721316315175,0.0521357,63679.0,63672.0,0.31757625]
[1721316315396,0.0521357,63679.0,63673.0,0.157052]
[1721316315612,0.0521357,63679.0,63674.0,0.15438174]
[1721316315832,0.00835,63679.0,63674.0,0.15438174]
[1721316316060,0.00835,63679.0,63678.0,0.23834]
[1721316316305,0.00835,63679.0,63678.0,1.02088174]
[1721316317959,0.00835,63679.0,63678.0,1.33896174]
[1721316318942,0.00835,63679.0,63678.0,0.71080174]
[1721316319173,0.00835,63679.0,63678.0,0.31542174]
[1721316319393,0.00835,63679.0,63678.0,1.26366174]
[1721316319626,0.00835,63679.0,63678.0,1.27766174]
[1721316319849,0.00835,63679.0,63678.0,0.33142174]
[1721316320108,0.00835,63679.0,63678.0,0.17438174]
[1721316320109,0.2091727,63679.0,63678.0,0.17438174]
[1721316320325,1.1513977,63679.0,63678.0,0.028]
[1721316320557,1.3961977,63679.0,63678.0,0.028]
[1721316320815,1.0821227,63679.0,63678.0,0.028]
[1721316321262,0.2008377,63673.0,63663.0,0.157074]
[1721316321488,0.25315,63679.0,63656.0,0.0611]
[1721316321489,0.0521357,63679.0,63673.0,0.157052]
[1721316321758,0.00835,63679.0,63678.0,0.15704]
[1721316321990,0.00835,63679.0,63678.0,0.62864182]
[1721316322211,0.00835,63679.0,63678.0,0.94272182]
[1721316322738,0.00835,63679.0,63678.0,0.93958174]
[1721316323221,0.00835,63679.0,63678.0,1.33066174]
[1721316323450,0.00835,63694.0,63685.0,0.785112]
[1721316323676,0.00835,63694.0,63685.0,0.93949374]
[1721316323915,0.00835,63694.0,63693.0,0.157003]
[1721316324167,0.00835,63694.0,63693.0,0.62539074]
[1721316324868,0.00835,63694.0,63693.0,0.15438174]
[1721316325375,0.20496848,63694.0,63693.0,0.15438174]
[1721316325596,0.08551479,63696.0,63693.0,0.15438174]
[1721316325818,0.08551479,63696.0,63694.0,0.15438174]
[1721316326041,0.07717479,63695.0,63694.0,0.15438174]
[1721316326277,0.00834,63696.0,63694.0,0.22988174]
[1721316326520,0.00834,63696.0,63695.0,0.156998]
[1721316326788,0.00834,63696.0,63695.0,0.15438174]
[1721316327690,0.00834,63696.0,63695.0,0.62851529]
[1721316327936,0.00834,63696.0,63695.0,0.31137974]
[1721316328171,0.00834,63696.0,63695.0,0.15438174]
[1721316328622,0.00834,63696.0,63695.0,0.16838174]
[1721316328848,0.00834,63696.0,63695.0,0.18138174]
[1721316329336,0.00834,63696.0,63695.0,0.32437974]
[1721316329551,0.00834,63696.0,63695.0,0.63837574]
[1721316329777,0.00834,63696.0,63695.0,0.95237174]
[1721316330244,0.00834,63696.0,63695.0,1.41036774]
[1721316330976,0.00834,63696.0,63695.0,1.42436774]
[1721316331199,0.00834,63696.0,63695.0,1.51883271]
[1721316331419,0.00834,63696.0,63695.0,1.50483271]
[1721316331646,0.00834,63696.0,63695.0,1.50583271]
[1721316331869,0.00834,63696.0,63695.0,1.48333305]
[1721316332083,0.00834,63696.0,63695.0,1.54283271]
[1721316332306,0.00834,63696.0,63695.0,1.44836774]
[1721316332531,0.00834,63696.0,63695.0,1.11137174]
[1721316332764,0.00834,63696.0,63695.0,1.09737174]
[1721316333483,0.00834,63696.0,63695.0,1.19183671]
[1721316333699,0.00834,63696.0,63695.0,1.46033305]
[1721316333911,0.00834,63696.0,63695.0,1.39736774]
[1721316334129,0.00834,63696.0,63695.0,1.13233705]
[1721316334374,0.00834,63696.0,63695.0,1.09737174]
[1721316334599,0.00834,63696.0,63695.0,1.41136774]
[1721316334811,0.00834,63696.0,63695.0,1.39736774]
[1721316335028,0.00834,63696.0,63695.0,1.41136774]
[1721316335267,0.00834,63696.0,63695.0,1.42536774]
[1721316335492,0.00834,63696.0,63695.0,1.41136774]
[1721316335967,0.00834,63696.0,63695.0,1.53436774]
[1721316336636,0.00834,63696.0,63695.0,1.54836774]
[1721316337105,0.00834,63696.0,63695.0,1.56236774]
[1721316337344,0.00834,63696.0,63695.0,1.92636374]
[1721316337561,0.00834,63696.0,63695.0,2.00680905]
[1721316337783,0.00834,63696.0,63695.0,1.95784374]
[1721316338003,0.00083,63700.0,63699.0,1.494372]
[1721316338237,0.00083,63700.0,63699.0,1.8827534]
[1721316338479,0.00083,63700.0,63699.0,2.01011871]
[1721316340135,0.00083,63700.0,63699.0,2.02411871]
[1721316340355,0.00083,63700.0,63699.0,1.9251534]
[1721316340622,0.00083,63700.0,63699.0,1.97411871]
[1721316340833,0.00083,63700.0,63699.0,1.62866271]
[1721316341301,0.00083,63700.0,63699.0,1.59716305]
[1721316341787,0.00083,63700.0,63699.0,1.43279774]
[1721316342022,0.00083,63700.0,63699.0,1.44679774]
[1721316342493,0.00083,63700.0,63699.0,1.43279774]
[1721316342946,0.00083,63700.0,63699.0,1.44679774]
[1721316343176,0.00083,63700.0,63699.0,1.36729774]
[1721316345376,0.00083,63700.0,63699.0,1.70427374]
[1721316346102,0.00083,63700.0,63699.0,1.94235374]
[1721316346590,0.00083,63700.0,63699.0,2.03118644]
[1721316346806,0.00083,63700.0,63699.0,2.34516244]
[1721316347039,0.00083,63700.0,63699.0,3.84516244]
[1721316347227,0.00083,63700.0,63699.0,3.83116244]
[1721316347464,0.00083,63700.0,63699.0,3.84516244]
[1721316347677,0.00083,63700.0,63699.0,3.85916244]
[1721316347896,0.00083,63700.0,63699.0,3.54518644]
[1721316348111,0.00083,63700.0,63699.0,3.81518644]
[1721316348243,0.00083,63700.0,63699.0,3.82918644]
[1721316348666,0.00083,63700.0,63699.0,4.14316244]
[1721316348870,0.00083,63700.0,63699.0,3.81518644]
[1721316349081,0.00083,63700.0,63699.0,3.82918644]
[1721316349968,0.00083,63700.0,63699.0,4.14316244]
[1721316350601,0.00083,63700.0,63699.0,4.12916244]
[1721316350811,0.00083,63700.0,63699.0,2.64316244]
[1721316351014,0.00083,63700.0,63699.0,2.65716244]
[1721316351248,0.00083,63700.0,63699.0,2.75158244]
[1721316351486,0.00083,63700.0,63699.0,2.43760644]
[1721316351691,0.00083,63700.0,63699.0,2.47257175]
[1721316351902,0.00083,63700.0,63699.0,2.48657175]
[1721316352111,0.00083,63700.0,63699.0,2.48671934]
[1721316352322,0.00083,63700.0,63699.0,2.34333403]
[1721316352793,0.00083,63700.0,63699.0,2.11105374]
[1721316353022,0.00083,63700.0,63699.0,2.12957374]
[1721316353226,0.00083,63700.0,63699.0,2.16105374]
[1721316353437,0.00083,63700.0,63699.0,2.26403164]
[1721316354114,0.00083,63700.0,63699.0,2.16105374]
[1721316355390,0.00083,63700.0,63699.0,2.26379577]
[1721316355602,0.00083,63700.0,63699.0,2.26379521]
[1721316356043,0.00083,63700.0,63699.0,2.34069521]
[1721316356313,0.00083,63700.0,63699.0,2.34068183]
[1721316356512,0.00083,63700.0,63699.0,2.65465783]
[1721316356970,0.00833,63714.0,63704.0,1.694264]
[1721316357189,0.00833,63714.0,63704.0,2.07437383]
[1721316358250,0.00833,63714.0,63704.0,2.07447695]
[1721316358497,0.00833,63714.0,63704.0,2.08847695]
[1721316358707,0.00833,63714.0,63704.0,2.10247695]
[1721316360545,0.00833,63714.0,63704.0,1.68404495]
[1721316360769,0.00833,63714.0,63704.0,1.37009295]
[1721316360770,0.0768,63709.0,63704.0,1.37009295]
[1721316360984,0.0768,63709.0,63704.0,1.31726174]
[1721316361217,0.00833,63714.0,63704.0,1.58121374]
[1721316361445,0.00833,63714.0,63704.0,1.63121374]
[1721316361871,0.00833,63714.0,63704.0,1.58121374]
[1721316362121,0.00833,63714.0,63704.0,1.26726174]
[1721316362325,0.00833,63714.0,63704.0,1.25326174]
[1721316363011,0.00833,63714.0,63704.0,1.42059006]
[1721316363224,0.00833,63714.0,63704.0,1.78902206]
[1721316363437,0.00833,63714.0,63704.0,1.68569374]